fUST/lending_fUST_20260512
["ID","MTS","AMOUNT","RATE_DAILY","PERIOD"]
[422063278,1778541048000,-734.06,0.00012054,2]
[422063277,1778541048000,-592.1,0.00012054,2]
[422063290,1778541048000,-500.0,0.00012054,2]
[422063291,1778541048000,-500.0,0.00012054,2]
[422063280,1778541048000,-500.0,0.00012054,2]
[422063282,1778541048000,-500.0,0.00012054,2]
[422063281,1778541048000,-500.0,0.00012054,2]
[422063283,1778541048000,-500.0,0.00012054,2]
[422063286,1778541048000,-655.37,0.00012054,2]
[422063284,1778541048000,-500.0,0.00012054,2]
[422063288,1778541048000,-665.21,0.00012054,2]
[422063287,1778541048000,-500.0,0.00012054,2]
[422063285,1778541048000,-500.0,0.00012054,2]
[422063289,1778541048000,-500.0,0.00012054,2]
[422063292,1778541048000,-580.2,0.00012054,2]
[422063303,1778541048000,-500.0,0.00012054,2]
[422063293,1778541048000,-951.15,0.00012054,2]
[422063301,1778541048000,-500.0,0.00012054,2]
[422063326,1778541048000,-500.0,0.00012054,2]
[422063328,1778541048000,-617.04,0.00012054,2]
[422063377,1778541048000,-2143.76,0.00012054,2]
[422063361,1778541048000,-1196.07,0.00012054,2]
[422063367,1778541048000,-1867.36,0.00012054,2]
[422063357,1778541048000,-682.41,0.00012054,2]
[422063358,1778541048000,-500.0,0.00012054,2]
[422063359,1778541048000,-500.0,0.00012054,2]
[422063362,1778541048000,-500.0,0.00012054,2]
[422063369,1778541048000,-2995.87,0.00012054,2]
[422063380,1778541048000,-500.0,0.00012054,2]
[422063368,1778541048000,-782.82,0.00012054,2]
[422063374,1778541048000,-1022.1,0.00012054,2]
[422063372,1778541048000,-528.86,0.00012054,2]
[422063370,1778541048000,-500.0,0.00012054,2]
[422063371,1778541048000,-2951.22,0.00012054,2]
[422063376,1778541048000,-500.0,0.00012054,2]
[422063375,1778541048000,-3944.58,0.00012054,2]
[422063373,1778541048000,-500.0,0.00012054,2]
[422063378,1778541048000,-572.46,0.00012054,2]
[422063329,1778541048000,-500.0,0.00012054,2]
[422063381,1778541048000,-21010.44,0.00012054,2]
[422063383,1778541048000,-500.0,0.00012054,2]
[422063384,1778541048000,-250.4,0.00012054,2]
[422063385,1778541048000,-500.0,0.00012054,2]
[422063386,1778541048000,-500.0,0.00012054,2]
[422063388,1778541048000,-3937.87,0.00012054,2]
[422063387,1778541048000,-500.0,0.00012054,2]
[422063382,1778541048000,-500.0,0.00012054,2]
[422063389,1778541048000,-500.0,0.00012054,2]
[422063366,1778541048000,-4461.34,0.00012054,2]
[422063365,1778541048000,-500.0,0.00012054,2]
[422063379,1778541048000,-500.0,0.00012054,2]
[422063364,1778541048000,-500.0,0.00012054,2]
[422063330,1778541048000,-700.14,0.00012054,2]
[422063337,1778541048000,-4433.29,0.00012054,2]
[422063335,1778541048000,-1172.29,0.00012054,2]
[422063333,1778541048000,-500.0,0.00012054,2]
[422063338,1778541048000,-500.0,0.00012054,2]
[422063360,1778541048000,-1698.58,0.00012054,2]
[422063334,1778541048000,-500.0,0.00012054,2]
[422063332,1778541048000,-500.0,0.00012054,2]
[422063336,1778541048000,-500.0,0.00012054,2]
[422063339,1778541048000,-500.0,0.00012054,2]
[422063340,1778541048000,-500.0,0.00012054,2]
[422063341,1778541048000,-500.0,0.00012054,2]
[422063342,1778541048000,-500.0,0.00012054,2]
[422063343,1778541048000,-500.0,0.00012054,2]
[422063331,1778541048000,-2165.24,0.00012054,2]
[422063345,1778541048000,-500.0,0.00012054,2]
[422063363,1778541048000,-998.76,0.00012054,2]
[422063344,1778541048000,-500.0,0.00012054,2]
[422063356,1778541048000,-1516.32,0.00012054,2]
[422063354,1778541048000,-500.0,0.00012054,2]
[422063348,1778541048000,-500.0,0.00012054,2]
[422063350,1778541048000,-845.75,0.00012054,2]
[422063355,1778541048000,-344.41,0.00012054,2]
[422063351,1778541048000,-734.49,0.00012054,2]
[422063347,1778541048000,-500.0,0.00012054,2]
[422063353,1778541048000,-1603.15,0.00012054,2]
[422063349,1778541048000,-1114.66,0.00012054,2]
[422063346,1778541048000,-3970.84,0.00012054,2]
[422063352,1778541048000,-500.0,0.00012054,2]
[422063412,1778541049000,-886.89,0.00012054,2]
[422063418,1778541049000,-500.0,0.00012054,2]
[422063414,1778541049000,-500.0,0.00012054,2]
[422063415,1778541049000,-711.22,0.00012054,2]
[422063416,1778541049000,-904.44,0.00012054,2]
[422063417,1778541049000,-500.0,0.00012054,2]
[422063419,1778541049000,-1109.0,0.00012054,2]
[422063423,1778541049000,-207.08013763,0.00012054,2]
[422063420,1778541049000,-500.0,0.00012054,2]
[422063429,1778541049000,-350.0,0.000121,2]
[422063424,1778541049000,-644.00836025,0.00012054,2]
[422063422,1778541049000,-500.0,0.00012054,2]
[422063425,1778541049000,-1504.78,0.00012054,2]
[422063427,1778541049000,-500.0,0.00012054,2]
[422063426,1778541049000,-500.0,0.00012054,2]
[422063430,1778541049000,-160.0,0.00012203,4]
[422063428,1778541049000,-500.0,0.00012054,2]
[422063413,1778541049000,-1620.58,0.00012054,2]
[422063421,1778541049000,-3036.93,0.00012054,2]
[422063409,1778541049000,-500.0,0.00012054,2]
[422063432,1778541049000,-1556.254,0.00012328,2]
[422063411,1778541049000,-2340.85,0.00012054,2]
[422063390,1778541049000,-687.89,0.00012054,2]
[422063391,1778541049000,-500.0,0.00012054,2]
[422063392,1778541049000,-500.0,0.00012054,2]
[422063393,1778541049000,-707.36,0.00012054,2]
[422063394,1778541049000,-1557.91,0.00012054,2]
[422063395,1778541049000,-806.58,0.00012054,2]
[422063398,1778541049000,-500.0,0.00012054,2]
[422063399,1778541049000,-500.0,0.00012054,2]
[422063401,1778541049000,-500.0,0.00012054,2]
[422063400,1778541049000,-500.0,0.00012054,2]
[422063396,1778541049000,-598.87,0.00012054,2]
[422063402,1778541049000,-500.0,0.00012054,2]
[422063397,1778541049000,-500.0,0.00012054,2]
[422063403,1778541049000,-500.0,0.00012054,2]
[422063404,1778541049000,-3308.12,0.00012054,2]
[422063405,1778541049000,-749.84,0.00012054,2]
[422063407,1778541049000,-500.0,0.00012054,2]
[422063406,1778541049000,-1083.98,0.00012054,2]
[422063408,1778541049000,-602.51221907,0.00012054,2]
[422063410,1778541049000,-1865.07,0.00012054,2]
[422063435,1778541049000,-500.0,0.00012328,2]
[422063472,1778541049000,-500.0,0.00012328,2]
[422063433,1778541049000,-593.88,0.00012328,2]
[422063459,1778541049000,-536.42,0.00012328,2]
[422063467,1778541049000,-500.0,0.00012328,2]
[422063469,1778541049000,-680.15,0.00012328,2]
[422063468,1778541049000,-500.0,0.00012328,2]
[422063461,1778541049000,-500.0,0.00012328,2]
[422063458,1778541049000,-500.0,0.00012328,2]
[422063460,1778541049000,-500.0,0.00012328,2]
[422063464,1778541049000,-500.0,0.00012328,2]
[422063451,1778541049000,-606.1893,0.00012328,2]
[422063463,1778541049000,-500.0,0.00012328,2]
[422063462,1778541049000,-500.0,0.00012328,2]
[422063466,1778541049000,-697.6,0.00012328,2]
[422063471,1778541049000,-500.0,0.00012328,2]
[422063474,1778541049000,-500.0,0.00012328,2]
[422063475,1778541049000,-500.0,0.00012328,2]
[422063476,1778541049000,-480.4476276,0.00012328,2]
[422063473,1778541049000,-899.6,0.00012328,2]
[422063442,1778541049000,-500.0,0.00012328,2]
[422063465,1778541049000,-500.0,0.00012328,2]
[422063453,1778541049000,-530.646791,0.00012328,2]
[422063470,1778541049000,-1928.84,0.00012328,2]
[422063456,1778541049000,-612.28,0.00012328,2]
[422063443,1778541049000,-500.0,0.00012328,2]
[422063454,1778541049000,-500.0,0.00012328,2]
[422063434,1778541049000,-500.0,0.00012328,2]
[422063441,1778541049000,-500.0,0.00012328,2]
[422063437,1778541049000,-456.9651842,0.00012328,2]
[422063436,1778541049000,-500.0,0.00012328,2]
[422063440,1778541049000,-500.0,0.00012328,2]
[422063439,1778541049000,-500.0,0.00012328,2]
[422063438,1778541049000,-564.07559298,0.00012328,2]
[422063444,1778541049000,-500.0,0.00012328,2]
[422063431,1778541049000,-6506.2741184,0.00012271,2]
[422063445,1778541049000,-607.34,0.00012328,2]
[422063450,1778541049000,-500.0,0.00012328,2]
[422063448,1778541049000,-500.0,0.00012328,2]
[422063447,1778541049000,-500.0,0.00012328,2]
[422063455,1778541049000,-500.0,0.00012328,2]
[422063457,1778541049000,-500.0,0.00012328,2]
[422063452,1778541049000,-631.07,0.00012328,2]
[422063449,1778541049000,-500.0,0.00012328,2]
[422063446,1778541049000,-500.0,0.00012328,2]
[422063477,1778541050000,-19.5523724,0.00012328,2]
[422063481,1778541050000,-82.15101715,0.00012328,2]
[422063480,1778541050000,-488.87354186,0.00012328,2]
[422063479,1778541050000,-11.12645814,0.00012328,2]
[422063478,1778541050000,-500.0,0.00012328,2]
[422063483,1778541050000,-370.29041738,0.00012328,2]
[422063484,1778541050000,-8.19804359,0.00012328,2]
[422063485,1778541050000,-491.80195641,0.00012328,2]
[422063486,1778541050000,-500.0,0.00012328,2]
[422063488,1778541050000,-500.0,0.00012328,2]
[422063489,1778541050000,-2.12591914,0.00012328,2]
[422063487,1778541050000,-500.0,0.00012328,2]
[422063482,1778541050000,-384.81382045,0.00012328,2]
[422063521,1778541244000,433.64864394,0.0001,30]
[422063572,1778542231000,-320.52404358,9.864e-05,2]
[422063573,1778542231000,-12.6109032,9.903e-05,2]
[422063580,1778542232000,-160.0,9.903e-05,2]
[422063587,1778542232000,-211.89381224,0.00010097,2]
[422063579,1778542232000,-161.621689,9.903e-05,2]
[422063577,1778542232000,-147.3890968,9.903e-05,2]
[422063585,1778542232000,-1001.0,0.00010096,2]
[422063583,1778542232000,-300.0,0.00010096,2]
[422063586,1778542232000,-300.0,0.00010097,2]
[422063582,1778542232000,-5000.0,0.0001,2]
[422064640,1778542246000,-16789.37983708,0.00010858,2]
[422064637,1778542246000,-194.968,0.00010641,2]
[422064629,1778542246000,-300.0,0.00010097,2]
[422064634,1778542246000,-600.0,0.00010097,2]
[422064642,1778542246000,-500.0,0.00010957,2]
[422064632,1778542246000,-300.0,0.00010097,2]
[422064606,1778542246000,-300.0,0.00010097,2]
[422064620,1778542246000,-300.0,0.00010097,2]
[422064610,1778542246000,-300.0,0.00010097,2]
[422064646,1778542246000,-500.0,0.00010957,2]
[422064623,1778542246000,-300.0,0.00010097,2]
[422064608,1778542246000,-300.0,0.00010097,2]
[422064604,1778542246000,-300.0,0.00010097,2]
[422064602,1778542246000,-88.10618776,0.00010097,2]
[422064618,1778542246000,-300.0,0.00010097,2]
[422064612,1778542246000,-300.0,0.00010097,2]
[422064615,1778542246000,-300.0,0.00010097,2]
[422064616,1778542246000,-300.0,0.00010097,2]
[422064601,1778542246000,-5000.0,0.0001,2]
[422064648,1778542246000,-500.0,0.00010957,2]
[422064626,1778542246000,-300.0,0.00010097,2]
[422064655,1778542246000,-500.0,0.00010957,2]
[422064644,1778542246000,-219.92822969,0.00010957,2]
[422064687,1778542246000,-500.0,0.00010958,2]
[422064685,1778542246000,-500.0,0.00010958,2]
[422064684,1778542246000,-500.0,0.00010958,2]
[422064682,1778542246000,-500.0,0.00010958,2]
[422064664,1778542246000,-500.0,0.00010957,2]
[422064680,1778542246000,-500.0,0.00010958,2]
[422064661,1778542246000,-500.0,0.00010957,2]
[422064662,1778542246000,-493.78333294,0.00010957,2]
[422064666,1778542246000,-500.0,0.00010957,2]
[422064659,1778542246000,-500.0,0.00010957,2]
[422064678,1778542246000,-500.0,0.00010958,2]
[422064676,1778542246000,-500.0,0.00010958,2]
[422064650,1778542246000,-500.0,0.00010957,2]
[422064653,1778542246000,-500.0,0.00010957,2]
[422064657,1778542246000,-500.0,0.00010957,2]
[422064652,1778542246000,-500.0,0.00010957,2]
[422064670,1778542246000,-500.0,0.00010958,2]
[422064668,1778542246000,-361.97942716,0.00010957,2]
[422064674,1778542246000,-500.0,0.00010958,2]
[422064672,1778542246000,-500.0,0.00010958,2]
[422064724,1778542247000,-500.0,0.00010958,2]
[422064715,1778542247000,-500.0,0.00010958,2]
[422064693,1778542247000,-500.0,0.00010958,2]
[422064713,1778542247000,-500.0,0.00010958,2]
[422064711,1778542247000,-500.0,0.00010958,2]
[422064716,1778542247000,-500.0,0.00010958,2]
[422064728,1778542247000,-500.0,0.00010958,2]
[422064709,1778542247000,-500.0,0.00010958,2]
[422064722,1778542247000,-500.0,0.00010958,2]
[422064697,1778542247000,-500.0,0.00010958,2]
[422064720,1778542247000,-500.0,0.00010958,2]
[422064707,1778542247000,-500.0,0.00010958,2]
[422064705,1778542247000,-539.67,0.00010958,2]
[422064703,1778542247000,-500.0,0.00010958,2]
[422064699,1778542247000,-678.3674,0.00010958,2]
[422064701,1778542247000,-500.0,0.00010958,2]
[422064689,1778542247000,-500.0,0.00010958,2]
[422064691,1778542247000,-500.0,0.00010958,2]
[422064732,1778542247000,-500.0,0.00010958,2]
[422064718,1778542247000,-500.0,0.00010958,2]
[422064730,1778542247000,-500.0,0.00010958,2]
[422064695,1778542247000,-500.0,0.00010958,2]
[422064746,1778542247000,-500.0,0.00010958,2]
[422064733,1778542247000,-500.0,0.00010958,2]
[422064781,1778542247000,-203.79555389,0.00010958,2]
[422064777,1778542247000,-500.0,0.00010958,2]
[422064779,1778542247000,-544.03,0.00010958,2]
[422064775,1778542247000,-500.0,0.00010958,2]
[422064770,1778542247000,-500.0,0.00010958,2]
[422064760,1778542247000,-500.0,0.00010958,2]
[422064764,1778542247000,-500.0,0.00010958,2]
[422064767,1778542247000,-500.0,0.00010958,2]
[422064772,1778542247000,-500.0,0.00010958,2]
[422064726,1778542247000,-543.84,0.00010958,2]
[422064758,1778542247000,-500.0,0.00010958,2]
[422064756,1778542247000,-688.61,0.00010958,2]
[422064750,1778542247000,-500.0,0.00010958,2]
[422064748,1778542247000,-1483.87,0.00010958,2]
[422064737,1778542247000,-500.0,0.00010958,2]
[422064735,1778542247000,-500.0,0.00010958,2]
[422064741,1778542247000,-500.0,0.00010958,2]
[422064752,1778542247000,-500.0,0.00010958,2]
[422064754,1778542247000,-500.0,0.00010958,2]
[422064762,1778542247000,-500.0,0.00010958,2]
[422064739,1778542247000,-500.0,0.00010958,2]
[422064962,1778542249000,-500.0,0.00010958,2]
[422064954,1778542249000,-500.0,0.00010958,2]
[422064956,1778542249000,-500.0,0.00010958,2]
[422064963,1778542249000,-500.0,0.00010958,2]
[422064955,1778542249000,-530.94,0.00010958,2]
[422064961,1778542249000,-602.31,0.00010958,2]
[422064958,1778542249000,-695.53,0.00010958,2]
[422064957,1778542249000,-500.0,0.00010958,2]
[422064959,1778542249000,-286.53138255,0.00010958,2]
[422064953,1778542249000,-296.20444611,0.00010958,2]
[422064964,1778542249000,-500.0,0.00010958,2]
[422064965,1778542249000,-500.0,0.00010958,2]
[422064966,1778542249000,-500.0,0.00010958,2]
[422064967,1778542249000,-500.0,0.00010958,2]
[422064972,1778542249000,-370.31604451,0.00010958,2]
[422064971,1778542249000,-500.0,0.00010958,2]
[422064968,1778542249000,-552.28604451,0.00010958,2]
[422064960,1778542249000,-500.0,0.00010958,2]
[422064970,1778542249000,-500.0,0.00010958,2]
[422064969,1778542249000,-49.68395549,0.00010958,2]
[422065070,1778543432000,-321.41385994,9.358e-05,2]
[422065074,1778543432000,-237.77923306,9.863e-05,2]
[422065072,1778543432000,-160.566907,9.415e-05,2]
[422065431,1778543438000,-300.0,0.00010199,2]
[422065457,1778543438000,-600.0,0.00010402,2]
[422065461,1778543438000,-20500.0,0.00010656,2]
[422065446,1778543438000,-300.0,0.00010199,2]
[422065459,1778543438000,-155.974,0.00010445,2]
[422065447,1778543438000,-300.0,0.00010199,2]
[422065464,1778543438000,-204.93234407,0.00010657,2]
[422065444,1778543438000,-300.0,0.00010199,2]
[422065426,1778543438000,-2336.38018205,0.0001,2]
[422065429,1778543438000,-300.0,0.00010199,2]
[422065442,1778543438000,-300.0,0.00010199,2]
[422065417,1778543438000,-2663.61981795,0.0001,2]
[422065438,1778543438000,-300.0,0.00010199,2]
[422065437,1778543438000,-300.0,0.00010199,2]
[422065433,1778543438000,-300.0,0.00010199,2]
[422065412,1778543438000,-160.0,0.0001,2]
[422065415,1778543438000,-160.0,0.0001,2]
[422065413,1778543438000,-161.621689,0.0001,2]
[422065410,1778543438000,-300.0,9.999e-05,2]
[422065408,1778543438000,-151.0,9.863e-05,2]
[422065406,1778543438000,-50.26357714,9.863e-05,2]
[422065463,1778543438000,-223.54943431,0.00010657,2]
[422065440,1778543438000,-300.0,0.00010199,2]
[422065451,1778543438000,-300.0,0.00010199,2]
[422065435,1778543438000,-300.0,0.00010199,2]
[422065453,1778543438000,-300.0,0.00010199,2]
[422065503,1778543438000,-500.0,0.00010657,2]
[422065512,1778543438000,-3227.57874916,0.00010658,2]
[422065501,1778543438000,-200.0,0.00010657,2]
[422065497,1778543438000,-500.0,0.00010657,2]
[422065495,1778543438000,-500.0,0.00010657,2]
[422065491,1778543438000,-500.0,0.00010657,2]
[422065483,1778543438000,-500.0,0.00010657,2]
[422065485,1778543438000,-500.0,0.00010657,2]
[422065505,1778543438000,-338746.27477038,0.00010658,2]
[422065487,1778543438000,-500.0,0.00010657,2]
[422065489,1778543438000,-500.0,0.00010657,2]
[422065499,1778543438000,-500.0,0.00010657,2]
[422065480,1778543438000,-500.0,0.00010657,2]
[422065493,1778543438000,-500.0,0.00010657,2]
[422065449,1778543438000,-300.0,0.00010199,2]
[422065468,1778543438000,-500.0,0.00010657,2]
[422065470,1778543438000,-500.0,0.00010657,2]
[422065466,1778543438000,-500.0,0.00010657,2]
[422065455,1778543438000,-300.0,0.00010199,2]
[422065474,1778543438000,-500.0,0.00010657,2]
[422065472,1778543438000,-500.0,0.00010657,2]
[422065476,1778543438000,-500.0,0.00010657,2]
[422065481,1778543438000,-500.0,0.00010657,2]
[422065478,1778543438000,-231.15057112,0.00010657,2]
[422065764,1778543440000,-3432.53169878,0.00010658,2]
[422065762,1778543440000,-1000.0,0.00010658,2]
[422065760,1778543440000,-716.17832852,0.00010658,2]
[422066091,1778543443000,-4119.01448785,0.00010658,2]
[422066093,1778543443000,-8839.75889643,0.00010658,2]
[422066095,1778543443000,-9384.44407561,0.00010658,2]
[422066100,1778543443000,-940.00654836,0.00010658,2]
[422066182,1778543446000,-457.9387042,0.00010658,2]
[422066183,1778543446000,-15957.32324277,0.00010658,2]
[422066220,1778544632000,-300.0,0.00010456,2]
[422066216,1778544632000,-322.29708106,0.00010045,2]
[422066206,1778544632000,-151.0,9.88e-05,2]
[422066218,1778544632000,-155.975,0.00010347,2]
[422066204,1778544632000,-476.4432668,9.88e-05,2]
[422066208,1778544632000,-325.8289405,9.88e-05,2]
[422066214,1778544632000,-5000.0,0.0001,2]
[422066210,1778544632000,-325.6004641,9.893e-05,2]
[422066212,1778544632000,-1000.0,0.0001,7]
[422066222,1778544632000,-4019.45621125,0.00010457,2]
[422066229,1778544632000,-500.0,0.00010457,2]
[422066232,1778544632000,-500.0,0.00010457,2]
[422066224,1778544632000,-5229.21950213,0.00010457,2]
[422066250,1778544632000,-95.69538388,0.00010457,2]
[422066243,1778544632000,-500.0,0.00010457,2]
[422066246,1778544632000,-19.06224179,0.00010457,2]
[422066248,1778544632000,-480.93775821,0.00010457,2]
[422066237,1778544632000,-500.0,0.00010457,2]
[422066227,1778544632000,-402.32097811,0.00010457,2]
[422066234,1778544632000,-401.80539979,0.00010457,2]
[422066231,1778544632000,-500.0,0.00010457,2]
[422066240,1778544632000,-500.0,0.00010457,2]
[422066319,1778544638000,-300.0,0.0001087,2]
[422066308,1778544638000,-300.0,0.0001087,2]
[422066312,1778544638000,-300.0,0.0001087,2]
[422066310,1778544638000,-300.0,0.0001087,2]
[422066316,1778544638000,-300.0,0.0001087,2]
[422066313,1778544638000,-300.0,0.0001087,2]
[422066322,1778544638000,-300.0,0.0001087,2]
[422066317,1778544638000,-300.0,0.0001087,2]
[422066318,1778544638000,-300.0,0.0001087,2]
[422066320,1778544638000,-300.0,0.0001087,2]
[422066307,1778544638000,-300.0,0.0001087,2]
[422066321,1778544638000,-300.0,0.0001087,2]
[422066324,1778544638000,-600.0,0.0001087,2]
[422066315,1778544638000,-300.0,0.0001087,2]
[422066305,1778544638000,-300.0,0.0001087,2]
[422066288,1778544638000,-361238.68369729,0.00010458,2]
[422066301,1778544638000,-325.805033,0.00010743,2]
[422066292,1778544638000,-160.0,0.00010536,2]
[422066290,1778544638000,-38155.78109705,0.00010458,2]
[422066286,1778544638000,-32306.689911,0.00010458,2]
[422066299,1778544638000,-325.805033,0.00010715,2]
[422066297,1778544638000,-151.0,0.00010715,2]
[422066294,1778544638000,-161.621689,0.00010536,2]
[422066295,1778544638000,-160.0,0.00010536,2]
[422066284,1778544638000,-181.26377985,0.00010457,2]
[422066279,1778544638000,-500.0,0.00010457,2]
[422066282,1778544638000,-500.0,0.00010457,2]
[422066280,1778544638000,-500.0,0.00010457,2]
[422066277,1778544638000,-404.30461612,0.00010457,2]
[422066323,1778544638000,-300.0,0.0001087,2]
[422066303,1778544638000,-325.8289405,0.00010743,2]
[422066326,1778544638000,-1850.608,0.00010958,2]
[422066353,1778544638000,-500.0,0.00010958,2]
[422066325,1778544638000,-510.8,0.000109,2]
[422066329,1778544638000,-500.0,0.00010958,2]
[422066356,1778544638000,-16939.899887,0.00010958,2]
[422066354,1778544638000,-500.88,0.00010958,2]
[422066357,1778544638000,-16939.899887,0.00010958,2]
[422066355,1778544638000,-500.0,0.00010958,2]
[422066352,1778544638000,-500.0,0.00010958,2]
[422066351,1778544638000,-500.0,0.00010958,2]
[422066349,1778544638000,-500.0,0.00010958,2]
[422066350,1778544638000,-500.0,0.00010958,2]
[422066342,1778544638000,-500.0,0.00010958,2]
[422066344,1778544638000,-500.0,0.00010958,2]
[422066345,1778544638000,-500.0,0.00010958,2]
[422066341,1778544638000,-500.0,0.00010958,2]
[422066348,1778544638000,-500.0,0.00010958,2]
[422066347,1778544638000,-500.0,0.00010958,2]
[422066358,1778544638000,-500.0,0.00010958,2]
[422066343,1778544638000,-535.8,0.00010958,2]
[422066346,1778544638000,-500.0,0.00010958,2]
[422066327,1778544638000,-500.0,0.00010958,2]
[422066332,1778544638000,-620.54312026,0.00010958,2]
[422066333,1778544638000,-500.0,0.00010958,2]
[422066331,1778544638000,-500.0,0.00010958,2]
[422066330,1778544638000,-500.0,0.00010958,2]
[422066328,1778544638000,-500.0,0.00010958,2]
[422066337,1778544638000,-500.0,0.00010958,2]
[422066335,1778544638000,-500.0,0.00010958,2]
[422066336,1778544638000,-573.87060302,0.00010958,2]
[422066338,1778544638000,-559.67,0.00010958,2]
[422066339,1778544638000,-500.0,0.00010958,2]
[422066334,1778544638000,-500.0,0.00010958,2]
[422066340,1778544638000,-371.59358025,0.00010958,2]
[422066391,1778544639000,-550.49,0.00010958,2]
[422066412,1778544639000,-500.0,0.00010958,2]
[422066401,1778544639000,-500.0,0.00010958,2]
[422066399,1778544639000,-717.49,0.00010958,2]
[422066400,1778544639000,-500.0,0.00010958,2]
[422066396,1778544639000,-500.0,0.00010958,2]
[422066397,1778544639000,-500.0,0.00010958,2]
[422066393,1778544639000,-500.0,0.00010958,2]
[422066394,1778544639000,-584.08478032,0.00010958,2]
[422066398,1778544639000,-500.0,0.00010958,2]
[422066402,1778544639000,-500.0,0.00010958,2]
[422066395,1778544639000,-500.0,0.00010958,2]
[422066392,1778544639000,-500.0,0.00010958,2]
[422066408,1778544639000,-500.0,0.00010958,2]
[422066403,1778544639000,-500.0,0.00010958,2]
[422066410,1778544639000,-500.0,0.00010958,2]
[422066405,1778544639000,-500.0,0.00010958,2]
[422066404,1778544639000,-500.0,0.00010958,2]
[422066409,1778544639000,-500.0,0.00010958,2]
[422066407,1778544639000,-301.43126335,0.00010958,2]
[422066406,1778544639000,-500.0,0.00010958,2]
[422066413,1778544639000,-500.0,0.00010958,2]
[422066415,1778544639000,-500.0,0.00010958,2]
[422066414,1778544639000,-500.0,0.00010958,2]
[422066417,1778544639000,-500.0,0.00010958,2]
[422066416,1778544639000,-500.0,0.00010958,2]
[422066389,1778544639000,-500.0,0.00010958,2]
[422066418,1778544639000,-1592.94,0.00010958,2]
[422066411,1778544639000,-500.0,0.00010958,2]
[422066390,1778544639000,-500.0,0.00010958,2]
[422066374,1778544639000,-500.0,0.00010958,2]
[422066386,1778544639000,-500.0,0.00010958,2]
[422066419,1778544639000,-500.0,0.00010958,2]
[422066360,1778544639000,-500.0,0.00010958,2]
[422066359,1778544639000,-500.0,0.00010958,2]
[422066362,1778544639000,-500.0,0.00010958,2]
[422066361,1778544639000,-500.0,0.00010958,2]
[422066363,1778544639000,-500.0,0.00010958,2]
[422066364,1778544639000,-500.0,0.00010958,2]
[422066366,1778544639000,-500.0,0.00010958,2]
[422066365,1778544639000,-500.0,0.00010958,2]
[422066367,1778544639000,-500.0,0.00010958,2]
[422066369,1778544639000,-1505.53,0.00010958,2]
[422066371,1778544639000,-500.0,0.00010958,2]
[422066368,1778544639000,-500.0,0.00010958,2]
[422066388,1778544639000,-500.0,0.00010958,2]
[422066370,1778544639000,-500.0,0.00010958,2]
[422066373,1778544639000,-625.23339254,0.00010958,2]
[422066376,1778544639000,-500.0,0.00010958,2]
[422066382,1778544639000,-500.0,0.00010958,2]
[422066375,1778544639000,-500.0,0.00010958,2]